[Event "Chessable English Open-ch 2022"]
[Site "Kenilwoth"]
[Date "2022.05.20"]
[Round "4.7"]
[White "Haydon, David L"]
[Black "Parker, Keith"]
[Result "1-0"]
[ECO "A06"]
[WhiteElo "2275"]
[BlackElo "1815"]
[Annotator "TA"]
[PlyCount "112"]
[EventDate "2022.05.18"]
[EventType "swiss"]
[EventCountry "ENG"]
[SourceTitle "playchess.com"]
[Source "ChessBase"]
[SourceQuality "1"]
[TimeControl "5400+30"]

{[%evp 9,112,-3,23,25,47,45,50,28,29,35,23,32,47,44,42,19,24,14,21,14,35,0,0,0,0,0,18,13,15,8,23,18,20,0,16,0,14,0,0,0,0,0,8,5,47,38,67,29,40,43,38,17,48,30,62,41,62,54,54,37,37,37,37,37,51,50,68,43,43,37,37,37,37,37,37,0,0,0,0,0,0,0,0,0,0,0,0,0,0,0,0,0,76,72,93,88,100,73,29997,46,102,46,29997,29998,29998]} 1. Nf3 {[%emt 0:14:12]} Nf6 {[%emt 0:00:33]} 2. e3 {[%emt 0:00:32]} d5 {[%emt 0:01:44]} 3. b3 {[%emt 0:00:12]} g6 {[%emt 0:00:46]} 4. Bb2 {[%emt 0:00:27]} Bg7 {[%emt 0:00:06]} 5. Be2 {[%emt 0:01:25]} Bg4 {[%emt 0:01:41]} 6. c4 {[%emt 0:01:24] A06: Réti Opening: 1 Nf3 d5.} Bxf3 {[%emt 0:04:03]} 7. Bxf3 {[%emt 0:02:02]} c6 {[%emt 0:00:57] [#]} 8. Qc2 $146 {[%emt 0:02:41] White is slightly better.} ({Predecessor:} 8. O-O O-O 9. d4 e6 10. Nd2 Qe7 11. Be2 Rd8 12. Qc2 Ne8 13. Nf3 Nd7 14. a4 {1-0 (36) Koepke,C (2332)-Egger,M (2007) Austria 2020}) 8... O-O {[%emt 0:01:15]} 9. d4 {[%emt 0:00:51]} Re8 {[%emt 0:05:02]} 10. Nc3 {[%emt 0:01:01]} e6 {[%emt 0:05:37]} 11. O-O {[%emt 0:01:10]} Nbd7 {[%emt 0:01:49]} 12. Rad1 {[%emt 0:00:44]} Rc8 {[%emt 0:01:16]} 13. Rfe1 {[%emt 0:01:58]} Qc7 {[%emt 0:04:15]} 14. Qb1 {[%emt 0:04:43]} Qb8 {[%emt 0:03:53]} 15. e4 {[%emt 0:04:23]} dxe4 {[%emt 0:01:12]} 16. Nxe4 {[%emt 0:01:33]} Nxe4 {[%emt 0:03:15]} 17. Rxe4 {[%emt 0:03:27]} Nf6 {[%emt 0:06:05]} 18. Re2 {[%emt 0:02:28]} Red8 {[%emt 0:02:14]} 19. g3 {[%emt 0:01:46][%cal Od4d5]} Qc7 {[%emt 0:04:45]} 20. Qa1 {[%emt 0:12:45][%cal Od4d5]} Ne8 {[%emt 0:08:10]} 21. Red2 {[%emt 0:03:14]} b6 {[%emt 0:02:02]} 22. Kg2 {[%emt 0:01:48]} Qe7 {[%emt 0:07:53]} 23. h4 {[%emt 0:04:27]} h5 {[%emt 0:00:54]} 24. Qb1 {[%emt 0:03:53]} Nf6 {[%emt 0:02:33]} 25. Qd3 {[%emt 0:02:41]} Qc7 {[%emt 0:06:45]} 26. Qe2 {[%emt 0:01:12]} Re8 {[%emt 0:00:44]} 27. Rd3 {[%emt 0:00:54]} Rcd8 {[%emt 0:00:50]} 28. Qe5 {[%emt 0:01:12]} Rc8 {[%emt 0:01:15]} 29. Bc1 {[%emt 0:02:40]} Ng4 {[%emt 0:08:54]} 30. Qe2 {[%emt 0:09:54]} Nh6 {[%emt 0:01:47]} 31. Bf4 {[%emt 0:01:22]} Qe7 {[%emt 0:00:48]} 32. Be4 {[%emt 0:01:32] White is more active.} Ng4 {[%emt 0:01:40]} 33. Qd2 {[%emt 0:01:44]} e5 {[%emt 0:02:36]} 34. dxe5 {[%emt 0:01:10]} Nxe5 {[%emt 0:01:19]} 35. Bxe5 {[%emt 0:01:14]} Qxe5 {[%emt 0:00:14]} 36. Bf3 {[%emt 0:00:27]} Re7 {[%emt 0:01:27]} 37. Rd8+ {[%emt 0:01:40]} Re8 {[%emt 0:05:12]} 38. Rxe8+ {[%emt 0:03:48]} Qxe8 {[%emt 0:00:40]} 39. Qd7 {[%emt 0:01:22]} (39. c5 {with more complications.} bxc5 40. Qg5 Qe5 41. Rd7) 39... Qxd7 {[%emt 0:01:54]} 40. Rxd7 $14 {[%emt 0:00:04][%mdl 4096] Endgame KRB-KRB} a5 {[%emt 0:00:47]} 41. Rd6 {[%emt 0:00:17]} Bf8 {[%emt 0:00:30]} 42. Rd7 {[%emt 0:00:47]} Bc5 {[%emt 0:00:29]} 43. g4 {[%emt 0:00:27]} hxg4 {[%emt 0:00:07]} 44. Bxg4 {[%emt 0:00:05][%cal Od7f7]} Re8 {[%emt 0:00:23]} 45. Bf3 {[%emt 0:00:33]} Re6 {[%emt 0:00:16]} 46. Rc7 {[%emt 0:02:18]} Rd6 {[%emt 0:00:27]} 47. Bxc6 {[%emt 0:01:34]} Rd2 {[%emt 0:00:15][%csl LRa2,LRf2]} 48. Bd5 {[%emt 0:00:49]} Rxf2+ {[%emt 0:00:32]} 49. Kh3 {[%emt 0:00:32]} Kf8 {[%emt 0:01:48]} 50. Kg4 {[%emt 0:00:35]} f5+ {[%emt 0:01:13]} (50... Be3 $11 {remains equal.}) 51. Kg5 $16 {[%emt 0:00:58]} Be7+ {[%emt 0:00:16]} 52. Kxg6 {[%emt 0:00:22] aiming for Rc8+.} Bxh4 {[%emt 0:00:33]} 53. Rh7 {[%emt 0:00:23]} Bd8 {[%emt 0:00:42][%mdl 8192] [#]} (53... Rf4 $16) 54. Rd7 $2 {[%emt 0:00:04]} (54. Rf7+ {mates} Kg8 55. Rxf5+ Kh8 56. Rh5#) 54... Bh4 {[%emt 0:00:32]} (54... Be7 $14) 55. Rb7 {[%emt 0:00:31]} (55. Bc6 $16 {Strongly threatening Rf7+.} Be7 56. Rb7) 55... Bd8 $2 {[%emt 0:00:28][%mdl 8192]} (55... Rxa2 $14 56. Bc6 (56. Rxb6 a4 $11) (56. Kxf5 Bf2 $11) 56... Ra1) 56. Rf7+ {[%emt 0:00:12]} Kg8 {[%emt 0:00:34] Weighted Error Value: White=0.21 (precise) /Black=0.42} 1-0

[Event "Chessable English Open-ch 2022"]
[Site "Kenilwoth"]
[Date "2022.05.20"]
[Round "4.8"]
[White "Wells, Peter K"]
[Black "Royal, Shreyas"]
[Result "0-1"]
[ECO "D24"]
[WhiteElo "2374"]
[BlackElo "2385"]
[Annotator "TA"]
[PlyCount "110"]
[EventDate "2022.05.18"]
[EventType "swiss"]
[EventCountry "ENG"]
[SourceTitle "playchess.com"]
[Source "ChessBase"]
[SourceQuality "1"]
[TimeControl "5400+30"]

{[%evp 9,110,25,49,49,57,54,58,47,58,52,48,36,47,10,48,0,0,0,0,0,0,0,34,33,42,38,35,-52,-51,-50,-50,-50,-52,-56,-60,-60,-54,-80,0,0,5,-89,-97,-91,-79,-95,-43,-42,-48,-48,-48,-54,-36,-36,-37,-48,-50,-52,-54,-53,-43,-42,-42,-45,-50,-52,-40,-60,-65,-67,-70,-103,-103,-103,-103,-103,-104,-104,-14,-111,-110,-154,-148,-149,-147,-150,-146,-129,-8,-8,-9,-29959,-29959,-29954,-8893,-29975,-29976,-29976,-29974,-29978,-29979,-29959,-6083]} 1. d4 {[%emt 0:02:25]} Nf6 {[%emt 0:00:07]} 2. c4 {[%emt 0:00:14]} e6 {[%emt 0:00:06]} 3. Nf3 {[%emt 0:00:16]} d5 {[%emt 0:00:06]} 4. Nc3 {[%emt 0:00:39]} dxc4 {[%emt 0:00:14]} 5. e4 {[%emt 0:00:24][%cal Be2e4,Be4e5][%mdl 32]} b5 {[%emt 0:00:08]} 6. e5 {[%emt 0:04:15] D24: Queen's Gambit Accepted: 3 Nf3 Nf6 4 Nc3.} Nd5 {[%emt 0:00:07]} 7. Nxb5 {[%emt 0:00:48]} Nb6 {[%emt 0:00:10]} 8. Be2 {[%emt 0:14:29] White is slightly better.} Nc6 {[%emt 0:00:27]} 9. O-O {[%emt 0:02:01]} Be7 {[%emt 0:01:04]} 10. Qd2 {[%emt 0:22:12] is cutting edge theory.} Ba6 {[%emt 0:27:52] [#]} 11. a4 $146 {[%emt 0:11:34]} ({Predecessor:} 11. Nc3 Nb4 12. Qf4 Nd3 13. Qg4 Nxc1 14. Raxc1 O-O 15. Rfd1 Rb8 16. b3 Qc8 17. bxc4 Bxc4 18. Bxc4 Nxc4 {1-0 (36) Stefanov,E (2350)-Krstic,M (2058) Tornelo INT 2021}) 11... Qd7 {[%emt 0:02:04]} 12. b3 {[%emt 0:05:24]} (12. Qf4 $14 {should be considered.}) 12... cxb3 $11 {[%emt 0:06:42]} 13. Nxc7+ {[%emt 0:01:04]} Qxc7 {[%emt 0:00:04]} 14. Bxa6 {[%emt 0:00:04]} O-O {[%emt 0:00:10]} 15. Qc3 {[%emt 0:10:43]} Rfd8 {[%emt 0:01:21]} 16. Be3 {[%emt 0:03:18] Rac1 is the strong threat. This bishop pair is nice.} Nd5 {[%emt 0:04:34]} 17. Qxb3 {[%emt 0:00:32]} Rab8 {[%emt 0:02:26]} 18. Qc2 {[%emt 0:04:52] [#]} (18. Qd1 $14) 18... Nxe5 $1 $15 {[%emt 0:00:43]} 19. Qe4 {[%emt 0:00:46]} Nxf3+ {[%emt 0:00:55]} 20. Qxf3 {[%emt 0:00:03]} Bf6 {[%emt 0:03:06]} 21. Rfc1 {[%emt 0:06:12]} Qb6 {[%emt 0:00:57]} 22. Bf1 {[%emt 0:03:38]} Qd6 {[%emt 0:10:00]} ({Much less strong is} 22... Bxd4 23. a5 (23. Rab1 Bxe3 24. Rxb6 Bxb6 $11) 23... Qb2 24. Rab1 Bxe3 25. Rxb2 Bxc1 26. Rxb8 Rxb8 27. Qd3 $14) 23. Rab1 {[%emt 0:02:09]} Qa3 {[%emt 0:01:16]} (23... Rxb1 $17 24. Rxb1 Qa3) 24. Rxb8 $1 $11 {[%emt 0:02:57]} Rxb8 {[%emt 0:00:05]} 25. Bc4 {[%emt 0:00:45]} (25. Bf4 $11 {keeps the balance.} Qxf3 26. Bxb8) 25... Rc8 $17 {[%emt 0:01:44][%cal Of6d4] Black is more active.} 26. Rb1 {[%emt 0:01:08]} Nxe3 {[%emt 0:01:05]} 27. Qxe3 {[%emt 0:00:07]} Qxa4 {[%emt 0:00:14]} (27... Qd6 $17 28. Bb3 Bxd4) 28. Bxe6 $15 {[%emt 0:00:17]} Rd8 {[%emt 0:11:35]} 29. Bb3 {[%emt 0:01:07]} Qxd4 {[%emt 0:00:06]} 30. Qf3 {[%emt 0:00:28]} Qd3 {[%emt 0:03:52]} 31. Qxd3 {[%emt 0:00:36]} Rxd3 {[%emt 0:00:04][%mdl 4096] Endgame KRB-KRB} 32. Bc4 {[%emt 0:00:28]} Rd7 {[%emt 0:00:30]} 33. Rb8+ {[%emt 0:00:28]} Bd8 {[%emt 0:00:03]} 34. Kf1 {[%emt 0:00:12]} Kf8 {[%emt 0:00:20]} 35. Ke2 {[%emt 0:00:47]} Ke7 {[%emt 0:00:10]} 36. Bb5 {[%emt 0:00:23]} Rc7 {[%emt 0:00:28]} 37. Kd3 {[%emt 0:00:29]} f5 {[%emt 0:00:28]} 38. Ra8 {[%emt 0:00:35]} Rb7 {[%emt 0:00:14]} 39. Kc4 {[%emt 0:00:24]} Bb6 {[%emt 0:00:30]} 40. Bc6 {[%emt 0:00:44]} Rc7 {[%emt 0:00:05]} 41. Kd5 {[%emt 0:00:22]} Bxf2 {[%emt 0:00:21]} 42. Rh8 {[%emt 0:00:36]} h6 {[%emt 0:00:18]} 43. Re8+ {[%emt 0:00:10] [#]} Kf6 {[%emt 0:00:25]} ({Better is} 43... Kf7 $1 $17 {[%cal Oc7c6]} 44. Re2 Bg1) 44. Re6+ {[%emt 0:00:51]} (44. Kd6 $1 $11 Bb6 45. h4) 44... Kg5 $17 {[%emt 0:00:05]} 45. g3 {[%emt 0:00:33]} Kg4 {[%emt 0:00:29]} 46. Kd6 {[%emt 0:00:24]} Bb6 {[%emt 0:00:34]} 47. Bd7 {[%emt 0:00:33]} Kh3 {[%emt 0:03:07]} 48. Re2 {[%emt 0:00:11][%cal Rd7f5]} Rxd7+ {[%emt 0:00:17]} 49. Kxd7 {[%emt 0:00:04] KR-KB} g5 {[%emt 0:00:04][%cal Bg7g5,Bg5f4,Bf4f3,Bf3f2][%mdl 32] Threatens to win with ...f4.} 50. Ke6 $2 {[%emt 0:01:07][%mdl 8192] Now White is beyond hope.} (50. Kc6 $11) 50... f4 {[%emt 0:00:05]} 51. gxf4 {[%emt 0:00:12]} gxf4 {[%emt 0:00:04] ( -> ...f3)} 52. Re4 {[%emt 0:00:28]} f3 {[%emt 0:00:19] Black mates.} 53. Rf4 {[%emt 0:00:20]} f2 {[%emt 0:00:12]} 54. Kf5 {[%emt 0:01:06]} Kg2 {[%emt 0:00:06]} 55. Rg4+ {[%emt 0:00:07]} Kf3 {[%emt 0:00:13] Weighted Error Value: White=0.44/Black=0.18 (very precise)} (55... Kxh2 $142 56. Rf4 Kg2 57. Rg4+ Kf3 58. Rg7 f1=Q 59. Re7 Kg2+ 60. Ke6 Qc4+ 61. Kd7 h5 62. Re5 h4 63. Ke8 h3 64. Rg5+ Kf3 65. Re5 Qc8+ 66. Kf7 Qd7+ 67. Re7 {[#]} Qxe7+ $3 {[%mdl 512]} 68. Kxe7 h2 69. Ke6 Ke4 70. Kf6 h1=Q 71. Kg7 Kf5 72. Kf8 Kf6 73. Kg8 Qg2+ 74. Kh8 Qg7#) 0-1

[Event "Chessable English Open-ch 2022"]
[Site "Kenilwoth"]
[Date "2022.05.20"]
[Round "4.8"]
[White "Ashton, Adam G"]
[Black "Southcott-Moyers, Indy"]
[Result "*"]
[ECO "C95"]
[WhiteElo "2366"]
[BlackElo "2028"]
[Annotator "TA"]
[PlyCount "54"]
[EventDate "2022.05.18"]
[EventType "swiss"]
[EventCountry "ENG"]
[SourceTitle "playchess.com"]
[Source "ChessBase"]
[SourceQuality "1"]
[TimeControl "5400+30"]

{[%evp 28,54,27,29,29,33,31,29,44,42,49,10,16,11,30,21,63,64,41,0,0,0,0,0,169,168,151,157,340]} 1. e4 {[%emt 0:00:04]} e5 {[%emt 0:00:07]} 2. Nf3 {[%emt 0:00:08]} Nc6 {[%emt 0:00:04]} 3. Bb5 {[%emt 0:00:04][%cal Bf1b5,Bb5a4,Ba4b3][%mdl 32]} a6 {[%emt 0:00:14]} 4. Ba4 {[%emt 1:32:14]} Nf6 {[%emt 0:00:12]} 5. O-O {[%emt 0:00:07]} Be7 {[%emt 0:00:11]} 6. Re1 {[%emt 0:00:05]} b5 {[%emt 0:00:04]} 7. Bb3 {[%emt 0:00:02]} d6 {[%emt 0:00:11]} 8. c3 {[%emt 0:01:35]} O-O {[%emt 0:00:10]} 9. h3 {[%emt 0:00:04]} Nb8 {[%emt 0:00:11]} 10. d4 {[%emt 0:00:20]} Nbd7 {[%emt 0:00:06]} 11. Nbd2 {[%emt 0:03:26]} Bb7 {[%emt 0:00:07]} 12. Bc2 {[%emt 0:02:00]} Re8 {[%emt 0:00:19]} 13. Nf1 {[%emt 0:00:42]} Bf8 {[%emt 0:00:44]} 14. Ng3 {[%emt 0:00:06]} g6 {[%emt 0:01:22]} 15. Bg5 {[%emt 0:01:51]} Bg7 {[%emt 0:03:15] C95: Closed Ruy Lopez: Breyer Variation with 10 d4.} 16. Qd2 {[%emt 0:00:33]} c5 {[%emt 1:31:13]} 17. d5 {[%emt 0:01:30]} c4 {[%emt 0:03:11] White has an edge.} 18. Nh2 {[%emt 0:05:06]} Qc7 {[%emt 0:08:59] [#]} 19. f3 $146 {[%emt 0:08:21]} ({Predecessor:} 19. Rf1 Rf8 20. Kh1 Kh8 21. f4 exf4 22. Rxf4 Ng8 23. Rf2 Ne5 24. Nf3 Rae8 25. a4 {1-0 (45) Bacrot,E (2728)-Postny,E (2648) Le Port Marly 2009}) 19... h5 {[%emt 0:05:57][%cal Bh7h5,Bh5h4][%mdl 32]} 20. Rf1 {[%emt 0:04:06]} Nc5 {[%emt 0:02:37]} 21. Bh6 {[%emt 0:08:22]} Qe7 {[%emt 0:06:57]} 22. Bxg7 {[%emt 0:07:30]} Kxg7 {[%emt 0:00:02]} 23. f4 {[%emt 0:01:13] aiming for fxe5.} (23. b4 $5 {[%cal Rb4c5]} Ncd7 24. a4 $11) 23... h4 {[%emt 0:02:03]} 24. fxe5 {[%emt 0:02:17]} dxe5 {[%emt 0:03:49]} (24... Qxe5 $2 25. Rxf6 $1 {[%mdl 512]} Bc8 26. Raf1 $1 Qxf6 27. Rxf6 $18) 25. d6 {[%emt 0:31:08]} ({Much worse is} 25. Rxf6 Qxf6 26. Ne2 Bc8 $17) 25... Qe6 {[%emt 0:07:18] [#] Inhibits Nf5+.} (25... Qd8 $1 $11 {and Black is okay.} 26. Rxf6 Qxf6) 26. Nf5+ $1 $18 {[%emt 0:01:17][%mdl 512]} gxf5 {[%emt 0:04:10]} 27. exf5 {[%emt 0:02:55]} Nfe4 $2 {[%emt 0:03:20] Prevents Qg5+.  Weighted Error Value: White=0.06 (flawless) /Black=0.35} (27... Qd5 28. Qg5+ Kf8 29. Qh6+ Kg8 30. Rf2 Qxd6 31. Ng4 $16) (27... Nce4 $16 {is a better defense.} 28. Bxe4 (28. fxe6 Nxd2 29. Rfd1 Nde4 $17) 28... Nxe4 29. fxe6 Nxd2 30. Rxf7+ Kg6) *

[Event "Chessable English Open-ch 2022"]
[Site "Kenilwoth"]
[Date "2022.05.20"]
[Round "4.9"]
[White "Ashton, Adam G"]
[Black "Southcott-Moyers, Indy"]
[Result "1/2-1/2"]
[ECO "C95"]
[WhiteElo "2366"]
[BlackElo "2028"]
[Annotator "TA"]
[PlyCount "149"]
[EventDate "2022.05.18"]
[EventType "swiss"]
[EventCountry "ENG"]
[SourceTitle "playchess.com"]
[Source "ChessBase"]
[SourceQuality "1"]
[TimeControl "5400+30"]

{[%evp 28,149,36,26,35,31,39,24,37,28,58,0,4,18,26,27,42,44,31,0,0,0,0,0,207,202,207,199,351,200,199,212,211,206,206,207,198,142,233,202,289,267,414,254,410,381,341,211,206,184,172,154,200,227,286,229,477,474,520,525,568,566,562,528,479,423,690,690,690,684,650,623,985,625,5716,1075,12358,10068,29978,29978,10239,10093,5608,7458,5631,4914,2392,1513,1016,727,29971,29972,29972,29973,29973,29975,29976,29975,29975,29976,29975,29976,29979,29980,29982,29983,29983,29984,29984,8,8,8,8,8,8,8,8,8,8,0,0,0,0,0]} 1. e4 {[%emt 0:00:04]} e5 {[%emt 0:00:07]} 2. Nf3 {[%emt 0:00:08]} Nc6 {[%emt 0:00:04]} 3. Bb5 {[%emt 0:00:04]} a6 {[%emt 0:00:14]} 4. Ba4 {[%emt 0:00:05]} Nf6 {[%emt 0:00:12]} 5. O-O {[%emt 0:00:07]} Be7 {[%emt 0:00:11]} 6. Re1 {[%emt 0:00:05]} b5 {[%emt 0:00:04]} 7. Bb3 {[%emt 0:00:02]} d6 {[%emt 0:00:11]} 8. c3 {[%emt 0:01:35]} O-O {[%emt 0:00:10]} 9. h3 {[%emt 0:00:04]} Nb8 {[%emt 0:00:11]} 10. d4 {[%emt 0:00:20]} Nbd7 {[%emt 0:00:06]} 11. Nbd2 {[%emt 0:03:26]} Bb7 {[%emt 0:00:07]} 12. Bc2 {[%emt 0:02:00]} Re8 {[%emt 0:00:19]} 13. Nf1 {[%emt 0:00:42]} Bf8 {[%emt 0:00:44]} 14. Ng3 {[%emt 0:00:06]} g6 {[%emt 0:01:22]} 15. Bg5 {[%emt 0:01:51]} Bg7 {[%emt 0:03:15] C95: Closed Ruy Lopez: Breyer Variation with 10 d4.} 16. Qd2 {[%emt 0:00:33]} c5 {[%emt 0:10:29]} 17. d5 {[%emt 0:01:30]} c4 {[%emt 0:03:11] White has an edge.} 18. Nh2 {[%emt 0:05:06]} Qc7 {[%emt 0:08:59] [#]} 19. f3 $146 {[%emt 0:08:21]} ({White should try} 19. Rf1 $14) ({Predecessor:} 19. Rf1 Rf8 20. Kh1 Kh8 21. f4 exf4 22. Rxf4 Ng8 23. Rf2 Ne5 24. Nf3 Rae8 25. a4 {1-0 (45) Bacrot,E (2728)-Postny,E (2648) Le Port Marly 2009}) 19... h5 $11 {[%emt 0:05:57]} 20. Rf1 {[%emt 0:04:06]} Nc5 {[%emt 0:02:37]} 21. Bh6 {[%emt 0:08:22]} Qe7 {[%emt 0:06:57]} 22. Bxg7 {[%emt 0:07:30]} Kxg7 {[%emt 0:00:02]} 23. f4 {[%emt 0:01:13] Hoping for fxe5.} (23. b4 $5 {[%cal Rb4c5]} cxb3 24. axb3 $11) 23... h4 {[%emt 0:02:03]} 24. fxe5 {[%emt 0:02:17]} dxe5 {[%emt 0:03:49]} (24... Qxe5 $2 25. Rxf6 $1 {[%mdl 512]} Bc8 26. Raf1 $1 Qxf6 27. Rxf6 $18) 25. d6 {[%emt 0:31:08]} (25. Rxf6 Qxf6 26. Ne2 Bc8 $17) 25... Qe6 {[%emt 0:07:18] [#] Prevents Nf5+.} (25... Qd8 $1 $11 {and Black stays safe.} 26. Rxf6 Qxf6) 26. Nf5+ $1 $18 {[%emt 0:01:17][%mdl 512]} gxf5 {[%emt 0:04:10]} 27. exf5 {[%emt 0:02:55]} Nfe4 {[%emt 0:03:20] Against Qg5+} (27... Qd5 28. Qg5+ Kf8 29. Qh6+ Kg8 30. Rf2 Qxd6 31. Ng4 $16) (27... Nce4 28. Bxe4 (28. fxe6 Nxd2 29. Rfd1 Nde4 $17) 28... Nxe4 29. fxe6 Nxd2 30. Rxf7+ Kg6) 28. Bxe4 {[%emt 0:03:13]} (28. fxe6 $142 Nxd2 29. Rxf7+ Kg8 30. Rc7) 28... Nxe4 {[%emt 0:00:05]} 29. fxe6 {[%emt 0:00:46]} Nxd2 {[%emt 0:00:01]} 30. Rxf7+ {[%emt 0:00:21]} Kg6 {[%emt 0:00:18]} 31. Rxb7 {[%emt 0:00:34]} Rxe6 {[%emt 0:00:07]} 32. Re1 {[%emt 0:03:43]} (32. d7 $18) 32... e4 {[%emt 0:03:28] [#]} (32... Rxd6 $16 33. Rxe5 Rf8) 33. d7 $1 {[%emt 0:03:27]} Rd8 {[%emt 0:00:33]} (33... e3 $142 34. Re2 Rd8) 34. Ng4 {[%emt 0:01:52]} Kf7 {[%emt 0:03:59]} (34... Rd6 $142 35. Kf2 Kf5) 35. Rd1 {[%emt 0:03:34]} Rd6 {[%emt 0:00:45]} (35... e3 {was worth a try.} 36. Nxe3 Rd6) 36. Kf2 {[%emt 0:00:10]} Ke6 {[%emt 0:01:17]} 37. Ke2 {[%emt 0:00:42]} e3 {[%emt 0:00:19]} 38. Nxe3 {[%emt 0:03:30] Dancing on a razor blade.} Ne4 {[%emt 0:00:12]} 39. Rxd6+ {[%emt 0:00:13]} Nxd6 {[%emt 0:00:29][%mdl 4096] Endgame KRN-KRN} (39... Kxd6 $16 40. Rb6+ Kxd7 41. Rxa6 Ng3+ 42. Kd2 Kc8+ 43. Kc2 Kb7) 40. Ra7 {[%emt 0:00:14]} Rf8 {[%emt 0:00:39]} 41. a4 {[%emt 0:01:19]} ({Don't take} 41. Rxa6 Kxd7 42. Ra7+ Kc6 43. Ra6+ Kd7 $18) 41... Rg8 $2 {[%emt 0:00:24]} (41... bxa4 42. Rxa6 Kxd7 43. Rxa4 Rg8) 42. a5 {[%emt 0:01:16]} Rf8 {[%emt 0:00:18]} 43. Nc2 {[%emt 0:00:44]} Ne4 {[%emt 0:00:22]} 44. Nd4+ {[%emt 0:00:54]} Kd6 {[%emt 0:00:31]} 45. Rxa6+ {[%emt 0:00:35]} Kxd7 {[%emt 0:00:15]} 46. Nxb5 {[%emt 0:00:14]} Rf2+ {[%emt 0:00:49]} (46... Rb8 $142 47. Rb6 Rxb6 48. axb6 Kc6) 47. Ke3 {[%emt 0:00:09]} Rxb2 {[%emt 0:00:06]} 48. Kxe4 {[%emt 0:00:34]} Rxb5 {[%emt 0:00:08] KR-KR} 49. Rh6 {[%emt 0:00:58] Threatens to win with a6.} Rg5 {[%emt 0:00:25]} 50. Rxh4 {[%emt 0:00:49]} Rxg2 {[%emt 0:00:08]} 51. Kd4 {[%emt 0:00:08]} (51. a6 $142 Kc7 52. Rh8) 51... Rg5 {[%emt 0:00:13]} 52. a6 {[%emt 0:00:14][%cal Ba5a6,Ba6a7][%mdl 32] Threatening mate with Rh8.} Ra5 {[%emt 0:00:05]} 53. a7 {[%emt 0:00:06]} Kc6 {[%emt 0:00:09]} 54. Rh6+ {[%emt 0:00:11]} Kb7 {[%emt 0:00:19]} 55. Kxc4 {[%emt 0:00:57]} Kxa7 {[%emt 0:00:11]} 56. Kd4 {[%emt 0:00:13]} Kb7 {[%emt 0:00:08]} 57. c4 {[%emt 0:00:02][%cal Bc3c4,Bc4c5][%mdl 32] aiming for h4.} Kc7 {[%emt 0:00:14]} 58. Rh7+ {[%emt 0:00:42]} Kd8 {[%emt 0:00:20]} 59. h4 {[%emt 0:00:20][%cal Bh3h4,Bh4h5,Bh5h6][%mdl 32]} Rf5 {[%emt 0:00:08]} 60. c5 {[%emt 0:00:26]} Rf6 {[%emt 0:00:23]} 61. h5 {[%emt 0:00:21]} Kc8 {[%emt 0:00:09]} 62. Ke5 {[%emt 0:00:26]} Rc6 {[%emt 0:00:05]} 63. Kd5 {[%emt 0:00:04]} Rf6 {[%emt 0:00:04]} 64. h6 {[%emt 0:01:05]} Rg6 {[%emt 0:00:14]} 65. Rh8+ {[%emt 0:01:00]} Kc7 {[%emt 0:00:55]} 66. h7 {[%emt 0:00:16]} Rh6 {[%emt 0:00:11]} 67. Ra8 {[%emt 0:00:11]} Rh5+ {[%emt 0:00:05]} 68. Kc4 $2 {[%emt 0:00:25]} (68. Ke6 {mates} Rh6+ 69. Kf5 Rh5+ 70. Kg6 Rh3 71. h8=Q Rxh8 72. Rxh8 Kd7 73. Rh5) 68... Rxh7 $11 {[%emt 0:00:04] The position is equal.} 69. Kb5 {[%emt 0:01:04] Ra7+ would kill now.} Rh6 {[%emt 0:00:11]} 70. Rg8 {[%emt 0:00:10]} Rf6 {[%emt 0:00:15]} 71. Rg7+ {[%emt 0:00:15]} Kc8 {[%emt 0:00:06]} 72. Rh7 {[%emt 0:00:08]} Rg6 {[%emt 0:00:08]} 73. c6 {[%emt 0:00:26] White threatens Kb6 and mate.} Rg1 {[%emt 0:00:10]} 74. Rh8+ {[%emt 0:00:11]} Kc7 {[%emt 0:00:17]} 75. Rh7+ {[%emt 0:00:04] White really could win this.  Weighted Error Value: White=0.28 (precise) /Black=0.59} 1/2-1/2

[Event "Chessable English Open-ch 2022"]
[Site "Kenilwoth"]
[Date "2022.05.20"]
[Round "4.9"]
[White "Ireland, David J"]
[Black "Hackner, Oskar A"]
[Result "0-1"]
[ECO "C00"]
[WhiteElo "2000"]
[BlackElo "2177"]
[Annotator "TA"]
[PlyCount "40"]
[EventDate "2022.05.18"]
[EventType "swiss"]
[EventCountry "ENG"]
[SourceTitle "playchess.com"]
[Source "ChessBase"]
[SourceQuality "1"]
[TimeControl "5400+30"]

{[%evp 10,40,-10,-14,-23,-19,-18,-70,-78,-71,-59,-68,-72,-75,-77,-236,-234,-237,-232,-235,-237,-241,-250,-470,-458,-1742,-1726,-29981,-29982,-29967,-2689,-29992,-29993]} 1. e4 {[%emt 0:12:16]} e6 {[%emt 0:00:06]} 2. c4 {[%emt 0:00:25]} d5 {[%emt 0:00:06]} 3. cxd5 {[%emt 0:00:05]} exd5 {[%emt 0:00:06]} 4. exd5 {[%emt 0:00:06]} Nf6 {[%emt 0:00:07][%cal Bg8f6,Bf6d5,Bd5b6,Bb6d5,Bd5e3][%mdl 32]} 5. Nc3 {[%emt 0:00:13]} Nxd5 {[%emt 0:00:07]} 6. Bc4 {[%emt 0:00:17]} Nb6 {[%emt 0:00:08] Active counter play! C00: French: Unusual White 2nd moves.} 7. Bb3 {[%emt 0:00:03]} Nc6 {[%emt 0:00:08]} 8. Nf3 {[%emt 0:00:50]} ({White should play} 8. Nge2 $11) 8... Qe7+ $15 {[%emt 0:01:39] [#] Black is slightly better.} 9. Kf1 $146 {[%emt 0:04:06]} ({Predecessor:} 9. Qe2 Bg4 10. Qxe7+ Bxe7 11. Nb5 O-O-O 12. Bd1 {½-½ (12) Grozea,F (1724)-Alten,S (1893) Berlin 2019}) 9... Be6 {[%emt 0:04:03]} 10. d4 {[%emt 0:01:50]} O-O-O {[%emt 0:01:44]} 11. Be3 {[%emt 0:01:18]} Nd5 {[%emt 0:04:21]} 12. Rc1 $2 {[%emt 0:03:13] [#]} (12. Bxd5 $17 {was called for.} Bxd5 13. Rc1) 12... Nxe3+ $19 {[%emt 0:01:54]} 13. fxe3 {[%emt 0:00:56]} Bxb3 {[%emt 0:00:13]} 14. Qxb3 {[%emt 0:00:39]} Qxe3 {[%emt 0:00:43]} 15. Re1 {[%emt 0:01:40]} Qd3+ {[%emt 0:03:51]} 16. Kf2 $2 {[%emt 0:01:32]} (16. Ne2 Qxb3 17. axb3) 16... Nxd4 {[%emt 0:01:05]} 17. Nxd4 {[%emt 0:03:57]} (17. Qd1 $142 Qg6 18. Re5 Nxf3 19. Qxf3) 17... Qxd4+ {[%emt 0:00:17]} 18. Kf3 {[%emt 0:05:36]} Qf6+ {[%emt 0:00:17]} 19. Ke2 {[%emt 0:01:49] [#]} Bc5 {[%emt 0:00:26]} (19... Bb4 $142 $1 {[%mdl 512]} 20. Qxb4 (20. Nd5 Rhe8+) 20... Rhe8+ 21. Ne4 Qf4 22. Rd1 Rxe4+ 23. Qxe4 Qxe4+ 24. Kf2 Qc2+ 25. Kg3 Rxd1 26. Rxd1 Qxd1 27. b4 Qe1+ 28. Kf3 Qxb4 29. a4 c5 30. Ke2 c4 31. a5 Qxa5 32. h4 Qf5 33. h5 Qd3+ 34. Kf2 c3 35. h6 gxh6 36. g3 c2 37. g4 c1=Q 38. Kg2 Qcd2+ 39. Kh1 Qf1#) 20. Ne4 {[%emt 0:01:11]} Rhe8 {[%emt 0:00:14] White got outplayed after the opening.  Weighted Error Value: White=1.18/Black=0.37} 0-1